[Event "Late-Titled-Tuesday-Blitz-March-19-2024"]
[Site "Chess.com"]
[Date "2024.03.19"]
[Round "8"]
[White "FabianoCaruana"]
[Black "VitaliyBernadskiy"]
[Result "1-0"]
[WhiteElo "3074"]
[BlackElo "2887"]
[TimeControl "180+1"]
[EndTime "15:28:04 PDT"]
[Termination "FabianoCaruana won on time"]

1. c4 {[%clk 0:03:00.9]} 1... e5 {[%clk 0:02:58]} 2. Nc3 {[%clk 0:02:59.6]} 2...
Nf6 {[%clk 0:02:57.6]} 3. g3 {[%clk 0:02:58.2]} 3... c6 {[%clk 0:02:51.1]} 4.
Nf3 {[%clk 0:02:57.1]} 4... e4 {[%clk 0:02:50.6]} 5. Nd4 {[%clk 0:02:57.7]} 5...
d5 {[%clk 0:02:46.6]} 6. cxd5 {[%clk 0:02:55]} 6... Qb6 {[%clk 0:02:44.6]} 7. e3
{[%clk 0:02:51.9]} 7... cxd5 {[%clk 0:02:41.6]} 8. Qb3 {[%clk 0:02:51.7]} 8...
Nc6 {[%clk 0:02:17.9]} 9. Nxd5 {[%clk 0:02:14.6]} 9... Nxd5 {[%clk 0:01:54.4]}
10. Qxd5 {[%clk 0:02:15.5]} 10... Nxd4 {[%clk 0:01:54.3]} 11. exd4 {[%clk
0:02:14.2]} 11... Be6 {[%clk 0:01:54.5]} 12. Bb5+ {[%clk 0:01:44.1]} 12... Ke7
{[%clk 0:01:54.4]} 13. Qc5+ {[%clk 0:01:44.5]} 13... Kf6 {[%clk 0:01:31.7]} 14.
Qe5+ {[%clk 0:01:37.9]} 14... Kg6 {[%clk 0:01:31.9]} 15. Be2 {[%clk 0:01:27.5]}
15... h5 {[%clk 0:01:21.7]} 16. O-O {[%clk 0:01:12.1]} 16... f6 {[%clk
0:01:11.1]} 17. Qxe4+ {[%clk 0:01:11.8]} 17... Bf5 {[%clk 0:01:11.5]} 18. Qe3
{[%clk 0:01:05.3]} 18... Bd6 {[%clk 0:01:06.9]} 19. Bd3 {[%clk 0:01:05.2]} 19...
Qa5 {[%clk 0:00:55.7]} 20. Qf3 {[%clk 0:01:01.9]} 20... Bxd3 {[%clk 0:00:52.5]}
21. Qxd3+ {[%clk 0:01:02.8]} 21... Qf5 {[%clk 0:00:53]} 22. Qxf5+ {[%clk
0:01:02.4]} 22... Kxf5 {[%clk 0:00:53.9]} 23. d3 {[%clk 0:01:00.9]} 23... Rac8
{[%clk 0:00:54.4]} 24. Bd2 {[%clk 0:00:54.6]} 24... Rc2 {[%clk 0:00:51.8]} 25.
Bc3 {[%clk 0:00:54.8]} 25... Re8 {[%clk 0:00:51.7]} 26. Rfc1 {[%clk 0:00:34.6]}
26... Ree2 {[%clk 0:00:51.1]} 27. Rxc2 {[%clk 0:00:34.1]} 27... Rxc2 {[%clk
0:00:52]} 28. a4 {[%clk 0:00:33.5]} 28... a5 {[%clk 0:00:26.5]} 29. Bxa5 {[%clk
0:00:23.5]} 29... Rxb2 {[%clk 0:00:26.3]} 30. Kg2 {[%clk 0:00:22.4]} 30... Rb3
{[%clk 0:00:24.6]} 31. Bd2 {[%clk 0:00:16.6]} 31... Rxd3 {[%clk 0:00:23.4]} 32.
Be3 {[%clk 0:00:17.2]} 32... Rb3 {[%clk 0:00:18.7]} 33. a5 {[%clk 0:00:17]}
33... Ke4 {[%clk 0:00:17.6]} 34. a6 {[%clk 0:00:14.8]} 34... bxa6 {[%clk
0:00:18.2]} 35. Rxa6 {[%clk 0:00:15.1]} 35... Ba3 {[%clk 0:00:11.7]} 36. Ra5
{[%clk 0:00:12.7]} 36... g5 {[%clk 0:00:10.5]} 37. h4 {[%clk 0:00:12.2]} 37...
gxh4 {[%clk 0:00:05.3]} 38. gxh4 {[%clk 0:00:13.1]} 38... f5 {[%clk 0:00:05.4]}
39. Re5+ {[%clk 0:00:12.9]} 39... Kd3 {[%clk 0:00:05.8]} 40. Rxf5 {[%clk
0:00:13.2]} 40... Bb2 {[%clk 0:00:04.3]} 41. Rxh5 {[%clk 0:00:13.1]} 41... Rb8
{[%clk 0:00:04.2]} 42. Rg5 {[%clk 0:00:11.5]} 42... Ke4 {[%clk 0:00:03.3]} 43.
Re5+ {[%clk 0:00:11.2]} 43... Kd3 {[%clk 0:00:03.5]} 44. h5 {[%clk 0:00:11.5]}
44... Rc8 {[%clk 0:00:02.3]} 45. h6 {[%clk 0:00:10.8]} 45... Rc6 {[%clk
0:00:01.8]} 46. h7 {[%clk 0:00:09.7]} 46... Rc8 {[%clk 0:00:01.9]} 47. Rh5
{[%clk 0:00:09.6]} 47... Rh8 {[%clk 0:00:01.2]} 48. Kf3 {[%clk 0:00:09.9]} 48...
Bxd4 {[%clk 0:00:01.4]} 49. Rd5 {[%clk 0:00:07]} 1-0

[Event "Late-Titled-Tuesday-Blitz-March-19-2024"]
[Site "Chess.com"]
[Date "2024.03.19"]
[Round "8"]
[White "bitter-cikolata"]
[Black "DrCeltic"]
[Result "1-0"]
[WhiteElo "2521"]
[BlackElo "2574"]
[TimeControl "180+1"]
[EndTime "15:28:04 PDT"]
[Termination "bitter-cikolata won on time"]

1. e4 {[%clk 0:03:00.9]} 1... c5 {[%clk 0:02:59.9]} 2. Nf3 {[%clk 0:02:55]} 2...
e6 {[%clk 0:03:00.1]} 3. d4 {[%clk 0:02:54.2]} 3... cxd4 {[%clk 0:03:01]} 4.
Nxd4 {[%clk 0:02:55]} 4... Nf6 {[%clk 0:03:00.8]} 5. Nc3 {[%clk 0:02:54.5]} 5...
d6 {[%clk 0:03:01.3]} 6. Bg5 {[%clk 0:02:50.9]} 6... Be7 {[%clk 0:03:01.2]} 7.
Qd2 {[%clk 0:02:50.4]} 7... h6 {[%clk 0:02:59.4]} 8. Bh4 {[%clk 0:02:27.9]} 8...
Nc6 {[%clk 0:02:41.3]} 9. O-O-O {[%clk 0:02:24.7]} 9... a6 {[%clk 0:02:38.9]}
10. f4 {[%clk 0:02:18.3]} 10... Bd7 {[%clk 0:02:32]} 11. Nf3 {[%clk 0:02:09.1]}
11... Qc7 {[%clk 0:02:04.7]} 12. e5 {[%clk 0:02:06.8]} 12... dxe5 {[%clk
0:01:56.4]} 13. fxe5 {[%clk 0:02:07.4]} 13... Nh7 {[%clk 0:01:47.6]} 14. Bxe7
{[%clk 0:02:06.8]} 14... Nxe7 {[%clk 0:01:48.5]} 15. Ne4 {[%clk 0:02:04]} 15...
Bc6 {[%clk 0:01:43.2]} 16. Nd6+ {[%clk 0:02:03.9]} 16... Kf8 {[%clk 0:01:43.5]}
17. Bd3 {[%clk 0:01:59.9]} 17... Rd8 {[%clk 0:01:24.6]} 18. Qf4 {[%clk
0:01:55.7]} 18... Nd5 {[%clk 0:01:21]} 19. Qg3 {[%clk 0:01:52.8]} 19... Nb4
{[%clk 0:01:17]} 20. Bxh7 {[%clk 0:01:44.3]} 20... Rxh7 {[%clk 0:01:14.4]} 21.
Rhf1 {[%clk 0:01:44.8]} 21... Bxf3 {[%clk 0:01:11]} 22. Rd2 {[%clk 0:01:37.3]}
22... Bh5 {[%clk 0:01:02.5]} 23. Qh4 {[%clk 0:01:36.3]} 23... Bg6 {[%clk
0:00:57.3]} 24. Qxb4 {[%clk 0:01:35]} 24... Kg8 {[%clk 0:00:52]} 25. g4 {[%clk
0:01:28.3]} 25... h5 {[%clk 0:00:51.8]} 26. g5 {[%clk 0:01:27.1]} 26... h4
{[%clk 0:00:52.4]} 27. Rfd1 {[%clk 0:01:23.2]} 27... Rh5 {[%clk 0:00:49.2]} 28.
c3 {[%clk 0:00:58.9]} 28... Rxg5 {[%clk 0:00:45.3]} 29. Qxh4 {[%clk 0:00:32.7]}
29... Rxe5 {[%clk 0:00:40.7]} 30. Nb5 {[%clk 0:00:12.2]} 30... Rxd2 {[%clk
0:00:27.5]} 31. Rxd2 {[%clk 0:00:13.1]} 31... Rh5 {[%clk 0:00:17]} 32. Qxh5
{[%clk 0:00:08.7]} 32... axb5 {[%clk 0:00:16.1]} 33. Qg5 {[%clk 0:00:09.1]}
33... Qc4 {[%clk 0:00:10.7]} 34. Qg1 {[%clk 0:00:05.3]} 34... Qe4 {[%clk
0:00:10.2]} 35. Rd8+ {[%clk 0:00:05.4]} 35... Kh7 {[%clk 0:00:08.9]} 36. Qf2
{[%clk 0:00:05.3]} 36... Qb1+ {[%clk 0:00:08.5]} 37. Kd2 {[%clk 0:00:05.9]}
37... Qxb2+ {[%clk 0:00:09.3]} 38. Ke1 {[%clk 0:00:05.6]} 38... Qxc3+ {[%clk
0:00:09.9]} 39. Kf1 {[%clk 0:00:06.1]} 39... Qh3+ {[%clk 0:00:10.2]} 40. Kg1
{[%clk 0:00:06.3]} 40... Qg4+ {[%clk 0:00:10.3]} 41. Kf1 {[%clk 0:00:05.1]}
41... Bf5 {[%clk 0:00:09.6]} 42. Rd4 {[%clk 0:00:05]} 42... Qf4 {[%clk
0:00:09.4]} 43. Rxf4 {[%clk 0:00:04.9]} 1-0

[Event "Late-Titled-Tuesday-Blitz-March-19-2024"]
[Site "Chess.com"]
[Date "2024.03.19"]
[Round "8"]
[White "xakevicius91"]
[Black "Kombinator01"]
[Result "0-1"]
[WhiteElo "2549"]
[BlackElo "2445"]
[TimeControl "180+1"]
[EndTime "15:28:07 PDT"]
[Termination "Kombinator01 won on time"]

1. e4 {[%clk 0:03:00.9]} 1... e5 {[%clk 0:02:46.4]} 2. Nf3 {[%clk 0:03:00.6]}
2... Nf6 {[%clk 0:02:45.5]} 3. Nxe5 {[%clk 0:02:55.2]} 3... Nxe4 {[%clk
0:02:44]} 4. Be2 {[%clk 0:02:31.8]} 4... Nc6 {[%clk 0:02:39.7]} 5. Nf3 {[%clk
0:02:30.8]} 5... d5 {[%clk 0:02:38.8]} 6. O-O {[%clk 0:02:27.9]} 6... Bd6 {[%clk
0:02:38.1]} 7. d3 {[%clk 0:02:17.7]} 7... Nf6 {[%clk 0:02:31.6]} 8. c4 {[%clk
0:02:10.4]} 8... h6 {[%clk 0:02:24.1]} 9. Nc3 {[%clk 0:02:08.8]} 9... O-O {[%clk
0:02:20.8]} 10. b3 {[%clk 0:01:53.1]} 10... d4 {[%clk 0:02:10.6]} 11. Nb5 {[%clk
0:01:50.1]} 11... Bc5 {[%clk 0:02:10.6]} 12. Bf4 {[%clk 0:01:46.9]} 12... Bb6
{[%clk 0:02:05.6]} 13. Ne5 {[%clk 0:01:43.8]} 13... Nxe5 {[%clk 0:01:57.8]} 14.
Bxe5 {[%clk 0:01:44.7]} 14... a6 {[%clk 0:01:58]} 15. Na3 {[%clk 0:01:44.2]}
15... Re8 {[%clk 0:01:57.8]} 16. Bg3 {[%clk 0:01:42.8]} 16... Qe7 {[%clk
0:01:48.4]} 17. Bf3 {[%clk 0:01:17.7]} 17... Qxa3 {[%clk 0:01:46.7]} 18. Qc2
{[%clk 0:01:16.8]} 18... c6 {[%clk 0:01:39.6]} 19. Bh4 {[%clk 0:01:14.3]} 19...
Qd6 {[%clk 0:01:35.3]} 20. Bg3 {[%clk 0:01:14.1]} 20... Qc5 {[%clk 0:01:29.2]}
21. h3 {[%clk 0:01:13.8]} 21... Bf5 {[%clk 0:01:28]} 22. a3 {[%clk 0:01:13.8]}
22... a5 {[%clk 0:01:26.8]} 23. b4 {[%clk 0:01:14.2]} 23... axb4 {[%clk
0:01:25.2]} 24. axb4 {[%clk 0:01:15.1]} 24... Qxb4 {[%clk 0:01:23.7]} 25. Rab1
{[%clk 0:01:10.8]} 25... Qc5 {[%clk 0:01:21.7]} 26. Qb3 {[%clk 0:00:57.8]} 26...
Ra6 {[%clk 0:01:19.4]} 27. Kh2 {[%clk 0:00:50.2]} 27... Rea8 {[%clk 0:01:16.1]}
28. Rfd1 {[%clk 0:00:49.5]} 28... Bc8 {[%clk 0:00:56.5]} 29. Kg1 {[%clk
0:00:44.1]} 29... Bd8 {[%clk 0:00:55.3]} 30. Re1 {[%clk 0:00:42.3]} 30... Ra3
{[%clk 0:00:52.9]} 31. Qc2 {[%clk 0:00:42.6]} 31... Be6 {[%clk 0:00:51.8]} 32.
Qd2 {[%clk 0:00:40]} 32... Ra2 {[%clk 0:00:49.4]} 33. Qf4 {[%clk 0:00:38.1]}
33... Qf5 {[%clk 0:00:46.4]} 34. Qc1 {[%clk 0:00:32.9]} 34... Qxd3 {[%clk
0:00:44.9]} 35. Be5 {[%clk 0:00:29.8]} 35... Qf5 {[%clk 0:00:43]} 36. Bxd4
{[%clk 0:00:29.3]} 36... R2a3 {[%clk 0:00:38.2]} 37. Rxb7 {[%clk 0:00:27.7]}
37... Rxf3 {[%clk 0:00:36.7]} 38. gxf3 {[%clk 0:00:28.6]} 38... Qxh3 {[%clk
0:00:34.5]} 39. Qf4 {[%clk 0:00:19.2]} 39... Nh5 {[%clk 0:00:29.4]} 40. Qe4
{[%clk 0:00:13.1]} 40... Bg5 {[%clk 0:00:23.5]} 41. Be5 {[%clk 0:00:10.2]} 41...
Re8 {[%clk 0:00:18.5]} 42. Qxc6 {[%clk 0:00:09.4]} 42... Rf8 {[%clk 0:00:16.8]}
43. Qe4 {[%clk 0:00:07]} 43... Qf5 {[%clk 0:00:15.8]} 44. Qxf5 {[%clk
0:00:07.1]} 44... Bxf5 {[%clk 0:00:16.7]} 45. c5 {[%clk 0:00:07.5]} 45... Rc8
{[%clk 0:00:16.4]} 46. f4 {[%clk 0:00:05]} 46... Nxf4 {[%clk 0:00:15.7]} 47.
Bxf4 {[%clk 0:00:03.2]} 47... Bxf4 {[%clk 0:00:16.2]} 48. Rb5 {[%clk 0:00:03]}
48... Bd3 {[%clk 0:00:15]} 49. Rb3 {[%clk 0:00:01.6]} 49... Bc4 {[%clk
0:00:14.8]} 50. Rc3 {[%clk 0:00:01.9]} 50... Rxc5 {[%clk 0:00:13.7]} 51. Re4
{[%clk 0:00:01.3]} 51... Rg5+ {[%clk 0:00:12.9]} 0-1

[Event "Late-Titled-Tuesday-Blitz-March-19-2024"]
[Site "Chess.com"]
[Date "2024.03.19"]
[Round "8"]
[White "vladislavkovalev"]
[Black "only_strong_moves"]
[Result "1-0"]
[WhiteElo "2882"]
[BlackElo "2667"]
[TimeControl "180+1"]
[EndTime "15:28:08 PDT"]
[Termination "vladislavkovalev won by checkmate"]

1. e4 {[%clk 0:02:57.5]} 1... e5 {[%clk 0:02:59.3]} 2. Nf3 {[%clk 0:02:57.9]}
2... Nc6 {[%clk 0:02:59.1]} 3. Bb5 {[%clk 0:02:58.3]} 3... a6 {[%clk 0:02:58.6]}
4. Ba4 {[%clk 0:02:59]} 4... Nge7 {[%clk 0:02:59.1]} 5. O-O {[%clk 0:02:58.1]}
5... Ng6 {[%clk 0:02:59.4]} 6. c3 {[%clk 0:02:54.9]} 6... d5 {[%clk 0:02:57.5]}
7. exd5 {[%clk 0:02:49.4]} 7... Qxd5 {[%clk 0:02:58.4]} 8. d4 {[%clk 0:02:45.9]}
8... Bg4 {[%clk 0:02:57.5]} 9. Bb3 {[%clk 0:02:32.2]} 9... Qd7 {[%clk 0:02:57]}
10. h3 {[%clk 0:02:29.6]} 10... Bh5 {[%clk 0:01:43.9]} 11. g4 {[%clk 0:02:21.1]}
11... Bxg4 {[%clk 0:01:40.6]} 12. hxg4 {[%clk 0:02:22]} 12... Qxg4+ {[%clk
0:01:22.5]} 13. Kh1 {[%clk 0:02:22.4]} 13... Bd6 {[%clk 0:01:06]} 14. Nh2 {[%clk
0:02:10.1]} 14... Qd7 {[%clk 0:00:59.6]} 15. dxe5 {[%clk 0:01:48.6]} 15... Ncxe5
{[%clk 0:00:57.8]} 16. f4 {[%clk 0:01:47.2]} 16... Nc6 {[%clk 0:00:54.4]} 17.
Qg4 {[%clk 0:01:41.6]} 17... f5 {[%clk 0:00:51.1]} 18. Re1+ {[%clk 0:01:40.8]}
18... Nce7 {[%clk 0:00:50.4]} 19. Qf3 {[%clk 0:01:39.8]} 19... c6 {[%clk
0:00:38.6]} 20. Na3 {[%clk 0:01:23]} 20... Qc7 {[%clk 0:00:38.4]} 21. Nc4 {[%clk
0:01:16.1]} 21... O-O-O {[%clk 0:00:33.8]} 22. Be3 {[%clk 0:00:58.1]} 22... Nd5
{[%clk 0:00:17.4]} 23. Nxd6+ {[%clk 0:00:37.3]} 23... Rxd6 {[%clk 0:00:18.3]}
24. Bxd5 {[%clk 0:00:28.2]} 24... Rxd5 {[%clk 0:00:19.2]} 25. Rad1 {[%clk
0:00:28.7]} 25... Re8 {[%clk 0:00:12.2]} 26. Rxd5 {[%clk 0:00:28.4]} 26... cxd5
{[%clk 0:00:13.1]} 27. Qh5 {[%clk 0:00:17.1]} 27... Qf7 {[%clk 0:00:06.9]} 28.
Nf3 {[%clk 0:00:16.8]} 28... Qf6 {[%clk 0:00:03.2]} 29. Qg5 {[%clk 0:00:13.3]}
29... Qf7 {[%clk 0:00:02.2]} 30. Kg2 {[%clk 0:00:07.9]} 30... Re4 {[%clk
0:00:02.8]} 31. Kf2 {[%clk 0:00:07.5]} 31... Qf8 {[%clk 0:00:02]} 32. Nd2 {[%clk
0:00:07.4]} 32... Re6 {[%clk 0:00:01.7]} 33. Bd4 {[%clk 0:00:07.2]} 33... Rxe1
{[%clk 0:00:02.2]} 34. Kxe1 {[%clk 0:00:08.1]} 34... Qe8+ {[%clk 0:00:02.4]} 35.
Kf2 {[%clk 0:00:08.6]} 35... Qe6 {[%clk 0:00:03.1]} 36. Qg3 {[%clk 0:00:07.9]}
36... Kd7 {[%clk 0:00:02]} 37. Bxg7 {[%clk 0:00:07.8]} 37... Qb6+ {[%clk
0:00:01.7]} 38. Qe3 {[%clk 0:00:06.7]} 38... Qxb2 {[%clk 0:00:02.6]} 39. Bd4
{[%clk 0:00:06.7]} 39... Qb5 {[%clk 0:00:02.4]} 40. Nf3 {[%clk 0:00:06.4]} 40...
Qc4 {[%clk 0:00:02.4]} 41. Ne5+ {[%clk 0:00:06.5]} 41... Nxe5 {[%clk 0:00:02.9]}
42. Qxe5 {[%clk 0:00:07.4]} 42... Qxa2+ {[%clk 0:00:03]} 43. Kg3 {[%clk
0:00:08.2]} 43... Qb1 {[%clk 0:00:02.2]} 44. Qxd5+ {[%clk 0:00:08.5]} 44... Kc8
{[%clk 0:00:02.6]} 45. Qe6+ {[%clk 0:00:08.3]} 45... Kc7 {[%clk 0:00:03.1]} 46.
Be5+ {[%clk 0:00:08.7]} 46... Kd8 {[%clk 0:00:03.6]} 47. Qg8+ {[%clk 0:00:06.8]}
47... Kd7 {[%clk 0:00:04]} 48. Qxh7+ {[%clk 0:00:07]} 48... Kc6 {[%clk
0:00:04.4]} 49. Qg6+ {[%clk 0:00:07.4]} 49... Kb5 {[%clk 0:00:04.8]} 50. Qe8+
{[%clk 0:00:06.8]} 50... Kc4 {[%clk 0:00:04.6]} 51. Qc8+ {[%clk 0:00:06.1]}
51... Kd5 {[%clk 0:00:04.8]} 52. Qd7+ {[%clk 0:00:06.4]} 52... Ke4 {[%clk
0:00:05]} 53. Qd4# {[%clk 0:00:06.5]} 1-0

[Event "Late-Titled-Tuesday-Blitz-March-19-2024"]
[Site "Chess.com"]
[Date "2024.03.19"]
[Round "8"]
[White "AsterPhoenix"]
[Black "Igrok3069"]
[Result "0-1"]
[WhiteElo "2659"]
[BlackElo "2873"]
[TimeControl "180+1"]
[EndTime "15:28:10 PDT"]
[Termination "Igrok3069 won by resignation"]

1. e4 {[%clk 0:03:00.9]} 1... e5 {[%clk 0:02:59.5]} 2. Nf3 {[%clk 0:03:00.8]}
2... Nc6 {[%clk 0:02:59.8]} 3. d4 {[%clk 0:02:59.7]} 3... exd4 {[%clk
0:02:59.5]} 4. Nxd4 {[%clk 0:03:00.6]} 4... Qf6 {[%clk 0:02:59.5]} 5. Be3 {[%clk
0:02:47]} 5... Bc5 {[%clk 0:02:55.1]} 6. c3 {[%clk 0:02:45]} 6... Nge7 {[%clk
0:02:53.6]} 7. Be2 {[%clk 0:02:24]} 7... O-O {[%clk 0:02:38.7]} 8. O-O {[%clk
0:02:22.7]} 8... d5 {[%clk 0:01:56.3]} 9. Nxc6 {[%clk 0:02:11.8]} 9... Qxc6
{[%clk 0:01:55.8]} 10. exd5 {[%clk 0:02:02.2]} 10... Nxd5 {[%clk 0:01:55.4]} 11.
Bxc5 {[%clk 0:02:01.1]} 11... Qxc5 {[%clk 0:01:55.5]} 12. Bf3 {[%clk 0:01:58.6]}
12... Be6 {[%clk 0:01:48.7]} 13. Nd2 {[%clk 0:01:56.6]} 13... Rad8 {[%clk
0:01:45.7]} 14. Nb3 {[%clk 0:01:51.1]} 14... Qb6 {[%clk 0:01:44.7]} 15. Qd4
{[%clk 0:01:49.1]} 15... c6 {[%clk 0:01:26.3]} 16. Qxb6 {[%clk 0:01:40.4]} 16...
axb6 {[%clk 0:01:25.5]} 17. Nd4 {[%clk 0:01:38.3]} 17... Nf4 {[%clk 0:01:09]}
18. Nxe6 {[%clk 0:01:33.7]} 18... fxe6 {[%clk 0:00:53.8]} 19. Rfd1 {[%clk
0:01:13.2]} 19... Nd3 {[%clk 0:00:53]} 20. b3 {[%clk 0:00:59.2]} 20... Nf4
{[%clk 0:00:38.2]} 21. Kf1 {[%clk 0:00:53.4]} 21... Kf7 {[%clk 0:00:36.7]} 22.
Rxd8 {[%clk 0:00:51.3]} 22... Rxd8 {[%clk 0:00:36.4]} 23. Rd1 {[%clk 0:00:52]}
23... Rxd1+ {[%clk 0:00:36.1]} 24. Bxd1 {[%clk 0:00:52.9]} 24... Nd5 {[%clk
0:00:36.6]} 25. c4 {[%clk 0:00:47]} 25... Nc3 {[%clk 0:00:36.8]} 26. Bc2 {[%clk
0:00:46.2]} 26... Nxa2 {[%clk 0:00:37.1]} 27. h4 {[%clk 0:00:40.5]} 27... h6
{[%clk 0:00:33.7]} 28. Ke2 {[%clk 0:00:39.5]} 28... Nb4 {[%clk 0:00:33.6]} 29.
Be4 {[%clk 0:00:38.9]} 29... Na6 {[%clk 0:00:33.5]} 30. Ke3 {[%clk 0:00:36.5]}
30... Kf6 {[%clk 0:00:32.6]} 31. f4 {[%clk 0:00:30.5]} 31... e5 {[%clk 0:00:27]}
32. g3 {[%clk 0:00:27.1]} 32... Nc5 {[%clk 0:00:25.8]} 33. Bc2 {[%clk
0:00:27.2]} 33... Ne6 {[%clk 0:00:25.1]} 34. Ke4 {[%clk 0:00:23.3]} 34... exf4
{[%clk 0:00:24.1]} 35. gxf4 {[%clk 0:00:24.2]} 35... Nf8 {[%clk 0:00:14.5]} 36.
Bd1 {[%clk 0:00:19.4]} 36... Ng6 {[%clk 0:00:14.4]} 37. Bg4 {[%clk 0:00:14.1]}
37... Nxh4 {[%clk 0:00:13.4]} 38. Bc8 {[%clk 0:00:13.9]} 38... c5 {[%clk
0:00:11.5]} 39. Bxb7 {[%clk 0:00:13.5]} 39... Nf5 {[%clk 0:00:11.7]} 40. Kd3
{[%clk 0:00:07.3]} 40... g5 {[%clk 0:00:10.6]} 41. fxg5+ {[%clk 0:00:07.2]}
41... hxg5 {[%clk 0:00:11.2]} 42. Kc3 {[%clk 0:00:05.7]} 42... Ke5 {[%clk
0:00:11]} 43. b4 {[%clk 0:00:05.9]} 43... Nd6 {[%clk 0:00:10.4]} 44. Bh1 {[%clk
0:00:04.7]} 44... g4 {[%clk 0:00:10.5]} 45. bxc5 {[%clk 0:00:04.7]} 45... bxc5
{[%clk 0:00:10.5]} 46. Kd3 {[%clk 0:00:04.3]} 46... Kf4 {[%clk 0:00:10.5]} 47.
Bd5 {[%clk 0:00:04.6]} 47... g3 {[%clk 0:00:10.9]} 48. Ke2 {[%clk 0:00:04.5]}
48... Nf5 {[%clk 0:00:10.8]} 49. Bg2 {[%clk 0:00:02.1]} 49... Ne3 {[%clk
0:00:10.7]} 50. Bd5 {[%clk 0:00:02.4]} 50... Nxd5 {[%clk 0:00:10.1]} 51. cxd5
{[%clk 0:00:03.3]} 51... Ke5 {[%clk 0:00:10.4]} 52. Kf3 {[%clk 0:00:04.2]} 52...
Kxd5 {[%clk 0:00:10.2]} 53. Kxg3 {[%clk 0:00:04.6]} 53... Kd4 {[%clk 0:00:10.4]}
54. Kf2 {[%clk 0:00:05.5]} 54... Kd3 {[%clk 0:00:10.6]} 55. Ke1 {[%clk
0:00:06.4]} 55... Kc2 {[%clk 0:00:11]} 56. Ke2 {[%clk 0:00:06.9]} 56... c4
{[%clk 0:00:11.4]} 0-1

[Event "Late-Titled-Tuesday-Blitz-March-19-2024"]
[Site "Chess.com"]
[Date "2024.03.19"]
[Round "8"]
[White "dolynachess"]
[Black "Goryachkina"]
[Result "0-1"]
[WhiteElo "2520"]
[BlackElo "2659"]
[TimeControl "180+1"]
[EndTime "15:28:12 PDT"]
[Termination "Goryachkina won by checkmate"]

1. d4 {[%clk 0:03:00.9]} 1... Nf6 {[%clk 0:02:59.6]} 2. c4 {[%clk 0:03:01.2]}
2... e6 {[%clk 0:02:59.7]} 3. g3 {[%clk 0:03:01.3]} 3... d5 {[%clk 0:02:58.9]}
4. Bg2 {[%clk 0:03:01.7]} 4... Bb4+ {[%clk 0:02:57.5]} 5. Nd2 {[%clk 0:03:01.2]}
5... O-O {[%clk 0:02:54.6]} 6. Nf3 {[%clk 0:03:00.9]} 6... b6 {[%clk 0:02:49]}
7. O-O {[%clk 0:02:59.7]} 7... Bb7 {[%clk 0:02:49.4]} 8. Qc2 {[%clk 0:02:58.7]}
8... Be7 {[%clk 0:02:43.8]} 9. Rd1 {[%clk 0:02:57.2]} 9... Qc8 {[%clk
0:02:34.8]} 10. b3 {[%clk 0:02:47]} 10... dxc4 {[%clk 0:02:29.8]} 11. Nxc4
{[%clk 0:02:37.8]} 11... Be4 {[%clk 0:02:20.8]} 12. Qd2 {[%clk 0:02:31.4]} 12...
Qb7 {[%clk 0:02:07.9]} 13. Bb2 {[%clk 0:02:29]} 13... Nbd7 {[%clk 0:02:06.3]}
14. Rac1 {[%clk 0:02:27.3]} 14... a5 {[%clk 0:02:05]} 15. Ne1 {[%clk 0:02:09.6]}
15... Bxg2 {[%clk 0:02:03.2]} 16. Nxg2 {[%clk 0:02:08.2]} 16... h6 {[%clk
0:01:36.6]} 17. Qc2 {[%clk 0:01:59.8]} 17... c5 {[%clk 0:01:18.2]} 18. dxc5
{[%clk 0:01:55]} 18... Bxc5 {[%clk 0:01:11.6]} 19. Ne1 {[%clk 0:01:39.3]} 19...
Rac8 {[%clk 0:01:07]} 20. Qd3 {[%clk 0:01:34.2]} 20... b5 {[%clk 0:00:28.1]} 21.
Nd2 {[%clk 0:01:16.7]} 21... Ng4 {[%clk 0:00:17.4]} 22. Ne4 {[%clk 0:01:07.7]}
22... Bb6 {[%clk 0:00:08.4]} 23. Rxc8 {[%clk 0:00:56.2]} 23... Rxc8 {[%clk
0:00:07.9]} 24. Qxd7 {[%clk 0:00:51.8]} 24... Qxe4 {[%clk 0:00:04.4]} 25. Qxc8+
{[%clk 0:00:51.9]} 25... Kh7 {[%clk 0:00:04.4]} 26. e3 {[%clk 0:00:17.2]} 26...
Bxe3 {[%clk 0:00:04.1]} 27. Qc2 {[%clk 0:00:11.1]} 27... Bxf2+ {[%clk
0:00:03.8]} 28. Kf1 {[%clk 0:00:07.2]} 28... Ne3+ {[%clk 0:00:04.1]} 29. Kxf2
{[%clk 0:00:07.1]} 29... Nxc2 {[%clk 0:00:05]} 30. Bc3 {[%clk 0:00:03.7]} 30...
Nxe1 {[%clk 0:00:04.1]} 31. Rxe1 {[%clk 0:00:04.6]} 31... Qc2+ {[%clk
0:00:04.4]} 32. Re2 {[%clk 0:00:04.4]} 32... Qxc3 {[%clk 0:00:04.8]} 33. Kf1
{[%clk 0:00:04.9]} 33... a4 {[%clk 0:00:05.2]} 34. bxa4 {[%clk 0:00:04.5]} 34...
bxa4 {[%clk 0:00:06.1]} 35. Kf2 {[%clk 0:00:05]} 35... a3 {[%clk 0:00:06.7]} 36.
Kf1 {[%clk 0:00:04.2]} 36... e5 {[%clk 0:00:07.1]} 37. Kf2 {[%clk 0:00:04.7]}
37... f5 {[%clk 0:00:07.4]} 38. h4 {[%clk 0:00:04.7]} 38... e4 {[%clk
0:00:07.8]} 39. Kg2 {[%clk 0:00:04.8]} 39... Qd3 {[%clk 0:00:07.5]} 40. Kf2
{[%clk 0:00:04.9]} 40... g5 {[%clk 0:00:07.8]} 41. Ke1 {[%clk 0:00:05.8]} 41...
f4 {[%clk 0:00:08]} 42. hxg5 {[%clk 0:00:05.8]} 42... hxg5 {[%clk 0:00:07.7]}
43. gxf4 {[%clk 0:00:06.7]} 43... gxf4 {[%clk 0:00:07.7]} 44. Rd2 {[%clk
0:00:07.6]} 44... Qxd2+ {[%clk 0:00:07.6]} 45. Kxd2 {[%clk 0:00:08.5]} 45... Kg6
{[%clk 0:00:08.1]} 46. Kc3 {[%clk 0:00:08.7]} 46... Kf5 {[%clk 0:00:08.6]} 47.
Kb3 {[%clk 0:00:09.6]} 47... f3 {[%clk 0:00:09.2]} 48. Kxa3 {[%clk 0:00:10.5]}
48... f2 {[%clk 0:00:09.8]} 49. Kb3 {[%clk 0:00:11.4]} 49... f1=Q {[%clk
0:00:10.3]} 50. a4 {[%clk 0:00:12.3]} 50... Qb1+ {[%clk 0:00:10.5]} 51. Kc4
{[%clk 0:00:12.5]} 51... Qc2+ {[%clk 0:00:10.3]} 52. Kb5 {[%clk 0:00:12]} 52...
e3 {[%clk 0:00:10.8]} 53. a5 {[%clk 0:00:12.2]} 53... e2 {[%clk 0:00:11.4]} 54.
a6 {[%clk 0:00:12.7]} 54... e1=Q {[%clk 0:00:11.8]} 55. a7 {[%clk 0:00:13.6]}
55... Qeb1+ {[%clk 0:00:12.2]} 56. Ka6 {[%clk 0:00:12.7]} 56... Qca2# {[%clk
0:00:13.1]} 0-1